bitfinex/quotes_ETHUSD_20260209
["timestamp","ask_amount","ask_price","bid_price","bid_amount"]
[1770680647048,0.96612486,2112.7,2112.3,0.001]
[1770680651749,0.002,2112.7,2112.3,0.001]
[1770680651927,0.002,2112.7,2112.3,0.90198788]
[1770680652825,0.002,2112.7,2112.3,0.001]
[1770680653027,0.96612486,2112.7,2112.3,0.001]
[1770680653340,0.96412486,2112.6,2112.3,0.001]
[1770680655532,0.96412486,2112.6,2112.5,0.001]
[1770680655747,0.002,2112.5,2112.3,0.001]
[1770680656336,0.002,2112.7,2112.4,0.90098788]
[1770680656540,0.002,2112.9,2112.4,8.41118196]
[1770680656972,0.002,2112.9,2112.5,1.18343195]
[1770680657755,0.96612486,2112.9,2112.3,1.18451272]
[1770680658155,0.96612486,2112.9,2112.4,1.18348613]
[1770680658455,0.96612486,2112.9,2112.5,0.5]
[1770680658658,0.96612486,2112.9,2112.4,1.18348613]
[1770680658951,0.96612486,2112.9,2112.3,0.001]
[1770680659145,2.14933737,2112.9,2112.3,0.001]
[1770680659955,0.95466624,2112.3,2112.0,0.001]
[1770680660127,0.95466624,2112.3,2111.9,0.001]
[1770680661145,1.18360003,2112.2,2111.9,0.001]
[1770680661549,0.95466624,2112.3,2111.9,0.001]
[1770680661550,2.13823729,2112.3,2111.9,0.001]
[1770680662264,5.41952943,2112.5,2111.9,0.001]
[1770680662862,4.49046619,2112.5,2111.9,0.001]
[1770680663176,0.92906324,2112.4,2111.9,0.001]
[1770680663659,2.11257355,2112.4,2111.9,0.001]
[1770680667544,2.11257355,2112.4,2112.1,0.001]
[1770680668254,4.49046442,2112.5,2112.1,0.001]
[1770680669257,5.41952766,2112.5,2112.1,0.001]
[1770680670147,0.92906324,2112.4,2112.1,0.001]
[1770680670985,4.49046442,2112.5,2112.1,0.001]
[1770680671143,4.49043932,2112.5,2112.1,0.001]
[1770680671470,5.41950256,2112.5,2112.1,0.001]
[1770680673766,0.92906324,2112.4,2112.1,0.001]
[1770680675069,4.49043932,2112.5,2112.1,0.001]
[1770680675577,3.307,2112.5,2112.1,0.001]
[1770680675787,3.307,2112.5,2112.1,0.93817322]
[1770680676199,1.18541596,2112.6,2112.1,0.93817322]
[1770680676200,0.002,2112.6,2112.1,0.93817322]
[1770680676645,1.18538917,2112.6,2112.1,0.001]
[1770680680449,0.002,2112.4,2112.2,0.001]
[1770680685454,0.002,2112.6,2112.2,0.001]
[1770680685652,0.002,2112.5,2112.2,0.001]
[1770680685872,0.93106324,2112.7,2112.2,0.001]
[1770680686076,0.93106324,2112.6,2112.2,0.001]
[1770680686281,0.92906324,2112.6,2112.2,0.001]
[1770680686477,0.002,2112.5,2112.2,0.001]
[1770680686882,0.002,2112.4,2112.2,0.001]
[1770680687085,0.002,2112.5,2112.2,0.001]
[1770680687481,2.11249394,2112.6,2112.2,0.001]
[1770680687687,0.002,2112.5,2112.2,0.001]
[1770680688092,0.002,2112.4,2112.2,0.001]
[1770680688263,0.002,2112.5,2112.2,0.001]
[1770680688663,0.002,2112.4,2112.2,0.001]
[1770680688963,0.002,2112.5,2112.2,0.001]
[1770680689362,0.002,2112.4,2112.2,0.001]
[1770680689563,0.002,2112.5,2112.2,0.001]
[1770680690564,0.9397927,2112.4,2112.2,0.001]
[1770680690760,0.9377927,2112.4,2111.9,0.001]
[1770680690966,4.73550373,2112.8,2111.9,0.001]
[1770680690967,0.002,2112.8,2112.2,0.94642919]
[1770680691364,0.004,2112.8,2112.2,0.94642919]
[1770680692408,0.002,2112.7,2112.0,2.13012608]
[1770680692697,0.9397927,2112.7,2112.2,0.001]
[1770680692905,0.002,2112.3,2112.2,0.001]
[1770680693382,0.002,2112.3,2112.2,0.94742919]
[1770680695683,0.002,2112.3,2112.2,2.13102922]
[1770680696369,0.002,2112.5,2112.2,2.13102922]
[1770680696595,0.004,2112.5,2112.2,2.13102922]
[1770680696798,0.004,2112.5,2112.2,0.94742919]
[1770680697010,0.004,2112.5,2112.2,2.13102651]
[1770680697212,0.004,2112.5,2112.2,0.94742919]
[1770680697373,0.004,2112.5,2112.2,2.13102298]
[1770680698790,0.004,2112.5,2112.2,0.94742919]
[1770680698990,0.004,2112.5,2112.2,2.13102784]
[1770680699700,0.004,2112.5,2112.2,0.94742919]
[1770680700313,0.002,2112.4,2112.2,0.001]
[1770680700668,0.002,2112.3,2112.2,0.001]
[1770680700909,0.002,2112.4,2112.2,0.001]
[1770680701515,0.002,2112.3,2112.2,0.001]
[1770680701685,0.9377927,2112.4,2112.0,0.001]
[1770680701889,0.9387927,2112.4,2112.0,0.001]
[1770680702185,0.9387927,2112.3,2112.0,0.001]
[1770680702379,0.9377927,2112.3,2112.0,0.001]
[1770680702818,1.18360003,2112.2,2112.0,0.001]
[1770680703132,0.001,2112.1,2111.6,0.001]
[1770680703409,0.9377927,2111.9,2111.4,0.001]
[1770680703777,0.9377927,2111.7,2111.4,0.001]
[1770680703977,0.9387927,2111.6,2111.4,0.001]
[1770680704199,0.9377927,2111.6,2111.4,0.001]
[1770680704397,0.001,2111.5,2111.3,0.001]
[1770680704573,0.001,2111.5,2111.2,0.001]
[1770680704574,3.307,2111.4,2111.1,0.001]
[1770680704910,4.4909981,2111.5,2111.2,0.002]
[1770680705108,0.9377927,2111.8,2111.2,0.002]
[1770680705109,1.18385989,2111.8,2111.2,0.002]
[1770680705290,4.49079521,2111.9,2111.4,0.94642919]
[1770680705612,3.307,2111.9,2111.4,0.94642919]
[1770680705791,3.307,2111.9,2111.5,0.002]
[1770680706417,3.307,2111.9,2111.6,0.002]
[1770680706604,3.307,2111.9,2111.4,0.94642919]
[1770680706803,3.307,2111.9,2111.5,0.002]
[1770680707221,3.307,2111.9,2111.4,2.13043389]
[1770680707405,4.49163614,2112.2,2111.5,0.94842919]
[1770680707594,3.308,2112.2,2111.6,0.94642919]
[1770680707793,3.308,2112.2,2111.6,0.94842919]
[1770680708305,3.308,2112.2,2111.7,9.36101615]
[1770680708631,3.308,2112.2,2111.7,0.94642919]
[1770680709123,3.308,2112.2,2111.8,0.002]
[1770680709326,5.42939487,2112.2,2111.4,1.1840146]
[1770680709530,5.42939487,2112.2,2111.4,0.002]
[1770680709531,0.9377927,2112.1,2111.4,0.002]
[1770680709699,0.9377927,2112.0,2111.4,0.002]
[1770680710291,5.42939487,2112.2,2111.5,0.002]
[1770680710728,0.9377927,2112.1,2111.5,0.002]
[1770680711295,2.12150482,2112.0,2111.2,0.001]
[1770680711506,2.12150482,2112.0,2111.3,0.002]
[1770680711902,2.12150482,2112.0,2111.4,0.002]
[1770680712090,2.12150482,2112.0,2111.3,0.002]
[1770680712501,2.12150482,2112.0,2111.4,0.002]
[1770680712699,2.12150482,2112.0,2111.3,0.002]
[1770680713525,5.67246041,2112.1,2111.3,0.002]
[1770680713729,0.9377927,2112.0,2111.4,0.002]
[1770680713927,0.9377927,2112.0,2111.3,0.002]
[1770680715206,4.73466771,2112.1,2111.4,0.002]
[1770680715712,5.67246041,2112.1,2111.4,0.002]
[1770680717414,5.67246041,2112.1,2111.3,2.13052992]
[1770680717621,5.67246041,2112.1,2111.4,0.002]
[1770680718427,5.67246041,2112.1,2111.4,0.003]
[1770680718731,0.002,2111.9,2111.4,0.003]
[1770680718935,0.002,2111.9,2111.5,0.002]
[1770680719447,0.002,2111.9,2111.6,0.002]
[1770680720923,0.002,2111.9,2111.7,0.002]
[1770680721116,0.002,2111.9,2111.4,1.18504535]
[1770680722016,0.002,2112.1,2111.7,0.90849703]
[1770680722940,0.002,2112.1,2111.8,2.09232125]
[1770680724226,0.002,2112.1,2111.9,0.90849703]
[1770680724431,0.002,2112.1,2111.8,1.18382422]
[1770680725949,0.002,2112.1,2111.8,2.09232125]
[1770680727066,0.002,2112.3,2111.9,0.90849703]
[1770680729183,0.002,2112.3,2112.0,1.18371212]
[1770680729476,0.002,2112.3,2112.0,2.09220915]
[1770680730047,0.002,2112.3,2112.0,1.18371212]
[1770680730250,0.002,2112.3,2111.9,0.90849703]
[1770680731247,0.002,2112.5,2112.1,0.90849703]
[1770680731852,0.002,2112.5,2111.8,9.323582]
[1770680732548,0.002,2112.5,2112.0,0.90849703]
[1770680732759,0.002,2112.5,2112.1,0.90849703]
[1770680733678,0.002,2112.5,2112.0,8.41408497]
[1770680734593,0.002,2112.5,2112.1,1.18365607]
[1770680735081,2.17134973,2112.8,2112.1,1.18365607]
[1770680735082,0.002,2112.8,2112.4,9.322582]
[1770680735459,0.002,2112.8,2112.2,9.322582]
[1770680735875,0.002,2112.8,2112.3,0.90849703]
[1770680736183,0.002,2112.8,2112.2,8.41408497]
[1770680736775,0.002,2112.8,2112.3,1.183544]
[1770680738084,0.002,2112.8,2112.2,2.09205532]
[1770680738384,0.98805942,2112.8,2112.2,1.18355829]
[1770680739082,2.17134158,2112.8,2112.1,4.73453002]
[1770680739260,2.17134158,2112.8,2111.8,0.001]
[1770680739261,0.98605942,2112.6,2111.8,0.001]
[1770680739468,0.98605942,2112.6,2111.9,1.18374211]
[1770680739855,0.98605942,2112.6,2111.9,1.18373905]
[1770680740281,0.98605942,2112.6,2112.0,9.59779369]
[1770680740669,2.17134158,2112.8,2112.0,10.50629072]
[1770680742388,0.98605942,2112.7,2112.0,10.50629072]
[1770680743892,1.18337593,2112.6,2112.0,10.50629072]
[1770680744088,2.16943535,2112.6,2112.0,1.18370872]
[1770680744273,2.16943535,2112.6,2111.9,1.18374323]
[1770680744469,2.16943535,2112.6,2112.2,0.001]
[1770680744676,0.98605942,2112.5,2112.2,0.001]
[1770680744870,0.98805942,2112.5,2112.2,0.001]
[1770680745384,0.002,2112.5,2112.2,0.001]
[1770680757614,0.002,2112.5,2112.4,0.001]
[1770680757912,0.002,2112.5,2112.2,0.001]
[1770680757913,0.93602971,2112.5,2112.2,0.001]
[1770680758520,0.002,2112.3,2112.2,0.001]
[1770680758724,0.93602971,2112.3,2112.2,0.001]
[1770680758882,0.93602971,2112.3,2111.8,0.001]
[1770680759086,0.93402971,2112.1,2111.5,0.001]
[1770680759497,0.002,2112.3,2111.5,0.001]
[1770680759498,1.18382422,2111.8,2111.5,0.001]
[1770680759698,0.93402971,2111.7,2111.5,0.001]
[1770680760101,8.41372028,2111.5,2110.9,1e-08]
[1770680760301,1.23826209,2111.8,2111.2,0.05443787]
[1770680760302,3.307,2111.7,2111.2,0.05443787]
[1770680760515,3.307,2111.7,2111.4,0.05443787]
[1770680760691,2.1177425,2112.0,2111.6,0.05443787]
[1770680760889,0.93402971,2111.9,2111.2,0.05443787]
[1770680761211,0.93402971,2111.7,2111.0,0.05443787]
[1770680761415,8.41372028,2111.4,2110.9,1e-08]
[1770680761600,10.53191065,2111.2,2110.9,1e-08]
[1770680762197,0.93402971,2111.1,2110.7,0.001]
[1770680763745,2.11830256,2111.0,2110.7,0.001]
[1770680764233,0.93402971,2110.9,2110.7,0.001]
[1770680764643,0.93402971,2110.9,2110.3,0.001]
[1770680764644,2.90802862,2109.4,2109.1,0.24702966]
[1770680764843,1.99980486,2108.4,2107.6,0.05443787]
[1770680765018,0.19259179,2107.9,2107.7,0.05443787]
[1770680765221,9.10529673,2109.0,2108.6,0.05443787]
[1770680765409,3.308,2109.1,2108.7,0.05443787]
[1770680766314,3.308,2109.1,2108.4,1.24013537]
[1770680766639,3.308,2109.1,2108.7,0.05443787]
[1770680766860,8.41372028,2108.8,2108.2,0.05443787]
[1770680767026,4.49335332,2109.1,2108.2,0.05443787]
[1770680767342,4.49335332,2109.1,2108.4,0.05443787]
[1770680767746,3.309,2109.0,2108.4,0.05443787]
[1770680767942,3.309,2109.0,2108.2,0.05443787]
[1770680768848,4.74101686,2109.5,2108.2,0.05443787]
[1770680768849,2.43735925,2109.6,2108.8,0.05443787]
[1770680769139,4.49411495,2109.5,2109.0,0.05443787]
[1770680769520,4.49411495,2109.5,2108.8,0.05443787]
[1770680769716,4.49411495,2109.5,2108.6,0.05443787]
[1770680770018,5.42814466,2109.5,2108.6,0.05443787]
[1770680770222,0.93402971,2109.4,2108.4,0.05443787]
[1770680770611,0.002,2108.8,2108.4,0.05443787]
[1770680770811,3.31,2108.7,2108.4,0.05443787]
[1770680771266,1.1850026,2109.7,2108.6,1.00878478]
[1770680771438,3.31,2109.6,2109.5,0.05443787]
[1770680771637,1.18511495,2109.5,2109.1,0.05443787]
[1770680771832,1.18511495,2109.5,2109.3,0.05443787]
[1770680772322,1.18511495,2109.5,2109.1,0.05443787]
[1770680773531,1.18511495,2109.5,2108.9,0.05443787]
[1770680773723,1.18511495,2109.5,2108.3,2.14009696]
[1770680773724,0.002,2109.4,2108.3,2.14009696]
[1770680773934,0.002,2109.4,2108.7,0.05443787]
[1770680774123,3.313,2109.3,2108.9,0.05443787]
[1770680774324,3.311,2109.3,2108.9,0.05443787]
[1770680775148,1.1850424,2109.7,2109.1,0.05443787]
[1770680775350,0.002,2109.7,2109.3,0.05443787]
[1770680777340,1.18494644,2109.8,2109.3,0.05443787]
[1770680777841,0.002,2109.7,2109.1,0.05443787]
[1770680778332,0.002,2109.6,2108.9,0.05443787]
[1770680778532,0.002,2109.7,2108.9,0.05443787]
[1770680778739,0.002,2109.7,2108.7,1.23999095]
[1770680778944,0.002,2109.6,2108.9,0.05443787]
[1770680779149,0.002,2109.7,2108.9,0.05443787]
[1770680780261,0.002,2109.6,2109.1,0.05443787]
[1770680780427,0.002,2109.7,2109.1,0.05443787]
[1770680780758,0.002,2109.7,2108.9,0.05443787]
[1770680780932,0.002,2109.6,2109.1,0.05443787]
[1770680781262,0.002,2109.7,2108.9,0.05443787]
[1770680781639,0.90815516,2109.6,2108.5,2.19613235]
[1770680781841,0.90615516,2109.6,2108.5,0.05443787]
[1770680782059,0.90815516,2109.5,2108.5,0.05443787]
[1770680782255,1.18517113,2109.4,2108.5,0.05443787]
[1770680782586,1.18717113,2109.4,2108.5,0.05443787]
[1770680782868,1.18717113,2109.4,2108.9,0.05443787]
[1770680782869,0.002,2109.3,2108.9,0.05443787]
[1770680785263,0.002,2109.3,2109.1,0.05443787]
[1770680785473,0.002,2109.4,2109.1,0.05443787]
[1770680785638,0.002,2109.3,2109.1,0.05443787]
[1770680787371,0.002,2109.3,2108.9,0.05443787]
[1770680787552,0.002,2109.3,2108.9,1.23988963]
[1770680788272,1.00640228,2109.2,2108.9,1.23988963]
[1770680788570,0.002,2109.3,2108.9,1.23988963]
[1770680788746,1.00658391,2109.2,2109.1,0.05443787]
[1770680788939,1.25622083,2109.5,2109.3,0.95602312]
[1770680788940,1.03280442,2109.5,2109.3,0.95602312]
[1770680789152,3.34992223,2110.8,2110.1,0.05443787]
[1770680789373,1.00928561,2110.4,2110.2,0.05443787]
[1770680789550,1.03480442,2110.5,2110.2,0.05443787]
[1770680790679,0.002,2110.5,2110.4,0.05443787]
[1770680791949,0.90615516,2111.6,2110.4,0.95602312]
[1770680792160,0.90615516,2111.6,2110.5,0.05443787]
[1770680792371,1.18399242,2111.5,2110.5,0.05443787]
[1770680792870,1.03280442,2111.4,2110.5,0.05443787]
[1770680793058,4.34480442,2111.4,2110.5,1.18454136]
[1770680793263,4.34480442,2111.4,2110.5,1.23897923]
[1770680793847,4.34480442,2111.4,2110.5,0.05443787]
[1770680794172,1.03280442,2111.3,2110.5,0.05443787]
[1770680794670,1.03280442,2111.2,2110.5,1.23897176]
[1770680794846,1.03280442,2111.2,2110.7,0.05443787]
[1770680795174,1.03280442,2111.1,2110.7,0.05443787]
[1770680795474,4.49608784,2111.4,2110.7,0.05443787]
[1770680795669,1.03280442,2111.3,2110.7,0.05443787]
[1770680796253,3.312,2111.4,2110.9,0.05443787]
[1770680796862,3.314,2111.4,2110.9,1.23872026]
[1770680797175,0.002,2111.4,2111.1,0.05443787]
[1770680799680,0.002,2111.4,2110.3,9.72188954]
[1770680799842,1.03280442,2111.3,2110.5,1.18455042]
[1770680800158,1.03280442,2111.3,2110.6,1.18449523]
[1770680801281,0.49337578,2111.1,2109.1,0.001]
[1770680801584,0.002,2111.4,2109.1,0.001]
[1770680801585,0.0704,2109.7,2109.1,0.001]
[1770680801872,1.18505877,2109.6,2108.9,0.001]
[1770680802079,2.21786319,2109.6,2108.9,0.001]
[1770680802251,1.03280442,2109.5,2108.9,0.001]
[1770680802649,1.03280442,2109.4,2108.9,0.001]
[1770680802874,1.03280442,2109.5,2108.9,0.001]
[1770680803256,1.03280442,2109.4,2108.9,0.001]
[1770680803453,1.03280442,2109.5,2108.9,0.001]
[1770680803857,1.03280442,2109.4,2108.9,0.001]
[1770680804077,1.03280442,2109.5,2108.9,0.001]
[1770680804676,1.03280442,2109.4,2108.9,0.001]
[1770680804876,1.03280442,2109.5,2108.9,0.001]
[1770680806379,1.18517113,2109.4,2108.9,0.001]
[1770680808483,1.18517113,2109.4,2109.1,0.001]
[1770680808783,1.03280442,2109.3,2109.1,0.001]
[1770680809082,5.64666203,2109.6,2109.1,0.001]
[1770680809083,1.03280442,2109.5,2109.1,0.001]
[1770680809257,1.03280442,2109.5,2108.9,0.001]
[1770680809459,1.03280442,2109.4,2108.9,0.001]
[1770680809677,1.03280442,2109.5,2108.9,0.001]
[1770680810485,0.99840222,2108.9,2108.0,0.001]
[1770680810681,1.18578949,2108.3,2107.6,0.001]
[1770680811159,1.03280442,2108.2,2107.6,0.001]
[1770680811663,1.03280442,2108.1,2107.6,0.001]
[1770680811866,1.18578949,2108.3,2107.6,0.001]
[1770680811867,1.03280442,2108.2,2107.6,0.001]
[1770680812386,1.03280442,2108.1,2107.6,0.001]
[1770680812558,1.03280442,2108.2,2107.6,0.001]
[1770680812754,1.18590199,2108.1,2107.6,0.001]
[1770680812961,2.21870641,2108.1,2107.6,0.001]
[1770680813912,1.18582078,2108.3,2107.6,0.001]
[1770680815000,1.03280442,2108.2,2107.6,0.001]
[1770680815294,5.74092624,2108.6,2107.6,0.001]
[1770680815991,1.03280442,2108.5,2107.6,0.9165505]
[1770680816900,1.03280442,2108.4,2107.6,0.9165505]
[1770680817095,1.03280442,2108.5,2107.6,0.9165505]
[1770680817297,1.03280442,2108.6,2107.6,2.10273191]
[1770680818100,1.18539592,2109.0,2107.9,0.9155505]
[1770680818403,1.03280442,2108.9,2107.9,0.9155505]
[1770680818774,1.03280442,2108.8,2107.9,0.9155505]
[1770680818993,1.03280442,2108.7,2107.9,0.9155505]
[1770680819277,2.21830177,2108.9,2108.1,0.9155505]
[1770680819786,2.21830177,2108.9,2108.0,1.18595825]
[1770680819985,1.03280442,2108.8,2108.0,1.18595825]
[1770680820498,1.03280442,2108.8,2108.1,0.9155505]
[1770680821177,1.18723182,2109.3,2108.3,0.96998837]
[1770680821402,1.03280442,2109.0,2108.3,0.96998837]
[1770680822114,1.18723182,2109.3,2108.3,0.96998837]
[1770680822315,1.03280442,2109.2,2108.3,0.9155505]
[1770680822896,1.03280442,2109.1,2108.3,0.9155505]
[1770680823093,1.03280442,2109.2,2108.3,0.9155505]
[1770680823301,1.18533971,2109.1,2108.3,0.9155505]
[1770680824088,1.18533971,2109.1,2108.3,2.10133934]
[1770680824982,1.18533971,2109.1,2108.2,4.74337798]
[1770680824983,1.03280442,2109.0,2108.2,1.18581484]
[1770680825187,2.21823961,2109.0,2108.3,1.1857886]
[1770680825487,1.03280442,2108.9,2108.4,0.9155505]
[1770680825678,1.03280442,2109.0,2108.4,0.9155505]
[1770680826418,1.18538342,2109.1,2108.2,1.1858109]
[1770680826419,1.03280442,2108.9,2108.2,1.1858109]
[1770680826580,1.18538342,2109.1,2108.2,1.1858109]
[1770680826786,1.03280442,2109.0,2108.2,1.1858109]
[1770680827284,1.03280442,2108.9,2108.2,1.1858109]
[1770680827480,0.99840222,2109.2,2108.2,1.1858109]
[1770680827795,1.03280442,2109.1,2108.2,1.1858109]
[1770680828004,1.03280442,2109.1,2108.3,0.9155505]
[1770680829819,4.74335887,2109.3,2108.4,1.18573325]
[1770680829820,1.03280442,2109.0,2108.4,1.18573325]
[1770680830010,1.03280442,2109.2,2108.3,2.10129751]
[1770680830412,1.03280442,2109.1,2108.0,0.9155505]
[1770680830587,0.99840222,2109.1,2108.0,0.9155505]
[1770680831685,1.18556456,2108.7,2107.8,0.001]
[1770680831918,4.49856456,2108.7,2107.8,0.001]
[1770680834194,4.49856456,2108.7,2108.0,0.001]
[1770680834889,1.03280442,2108.6,2108.0,0.001]
[1770680837516,4.49856456,2108.7,2108.0,0.001]
[1770680837710,1.03280442,2108.6,2108.0,0.001]
[1770680838197,1.03280442,2108.5,2108.0,0.001]
[1770680839529,1.03280442,2108.4,2108.0,0.001]
[1770680841925,3.313,2108.7,2108.0,0.92760292]
[1770680842095,1.03280442,2108.6,2108.0,0.92760292]
[1770680842691,1.03280442,2108.5,2108.0,0.92760292]
[1770680842901,1.03280442,2108.6,2108.0,0.92760292]
[1770680843394,1.03280442,2108.5,2108.0,0.92760292]
[1770680843590,1.03280442,2108.6,2108.1,0.92660292]
[1770680844011,3.313,2108.7,2108.1,0.92660292]
[1770680844225,4.34580442,2108.7,2108.1,0.92660292]
[1770680844816,1.03280442,2108.7,2108.1,0.92660292]
[1770680845498,0.002,2108.8,2108.1,0.92660292]
[1770680845693,1.03280442,2108.7,2108.3,0.92660292]
[1770680846125,0.002,2108.8,2108.3,0.92660292]
[1770680846821,1.1875562,2108.8,2108.3,0.92660292]
[1770680846995,1.1875562,2108.8,2108.1,2.11249762]
[1770680847198,1.1875562,2108.8,2108.1,2.11349762]
[1770680847529,0.002,2108.3,2108.1,2.11349762]
[1770680848321,0.002,2108.8,2108.2,0.92660292]
[1770680851133,0.002,2108.8,2108.4,0.92660292]
[1770680852534,0.002,2108.8,2108.2,2.11241471]
[1770680853345,0.98923614,2108.8,2108.1,0.001]
[1770680855160,0.98923614,2108.8,2108.0,0.001]
[1770680855323,0.98723614,2108.6,2108.0,0.001]
[1770680856917,0.98723614,2108.5,2108.0,0.001]
[1770680857619,1.18567702,2108.5,2108.0,0.001]
[1770680860649,0.98723614,2108.4,2108.0,0.001]
[1770680860847,1.18567702,2108.5,2108.0,0.001]
[1770680861073,2.17291316,2108.5,2107.8,0.001]
[1770680861252,0.002,2108.3,2107.8,0.001]
[1770680861577,0.002,2108.3,2107.9,0.001]
[1770680862361,1.18778949,2108.3,2107.9,0.001]
[1770680862857,1.18778949,2108.3,2107.6,0.001]
[1770680863032,0.98723614,2108.2,2107.0,2.11409706]
[1770680863227,0.98723614,2108.2,2107.1,1.18646047]
[1770680863429,0.98723614,2108.2,2107.2,2.11301137]
[1770680863838,0.98723614,2108.2,2107.3,2.11291933]
[1770680864045,0.98723614,2108.2,2107.3,0.92660292]
[1770680864452,1.18590199,2108.1,2107.3,0.92660292]
[1770680866747,4.74526527,2108.3,2107.3,2.11292095]
[1770680866948,4.74526527,2108.3,2107.4,0.92660292]
[1770680868441,0.98723614,2108.2,2107.3,1.18631803]
[1770680868672,1.18590199,2108.1,2107.3,0.92660292]
[1770680868873,4.30123614,2108.0,2107.1,2.11306427]
[1770680869871,4.30123614,2108.0,2107.1,1.18646135]
[1770680870072,4.30123614,2108.0,2107.2,0.99208913]
[1770680871042,1.18601451,2107.9,2107.2,0.99208913]
[1770680873466,2.18458101,2107.9,2107.1,2.17855353]
[1770680873664,1.18601451,2107.9,2107.1,2.17854631]
[1770680874264,1.18601451,2107.9,2107.4,0.001]
[1770680876856,3.314,2108.0,2107.4,0.99308913]
[1770680878283,3.314,2108.0,2107.5,1.18623962]
[1770680878483,3.314,2108.0,2107.5,2.17832875]
[1770680878855,1.18587905,2108.2,2107.6,0.99208913]
[1770680880392,4.7453214,2108.3,2107.8,0.99208913]
[1770680880393,0.002,2108.3,2107.8,0.99208913]
[1770680882508,0.002,2108.3,2108.0,0.99208913]
[1770680884801,0.002,2108.3,2108.0,2.17802604]
[1770680886873,0.002,2108.1,2108.0,2.17802604]
[1770680888898,0.002,2108.1,2108.0,0.99208913]
[1770680889915,0.002,2108.1,2107.9,1.18600912]
[1770680890219,0.002,2108.1,2107.8,2.17812477]
[1770680892530,0.002,2108.1,2107.7,1.18608234]
[1770680892813,0.002,2108.1,2107.4,2.17935016]
[1770680893115,0.002,2108.1,2107.4,0.99308913]
[1770680895414,0.002,2108.1,2107.6,0.99208913]
[1770680895918,0.002,2108.1,2107.4,0.001]
[1770680896387,1.0005665,2108.1,2107.4,0.001]
[1770680897915,1.18595825,2108.0,2107.4,0.001]
[1770680899526,2.12874119,2108.0,2107.4,0.001]
[1770680899893,2.12874119,2108.0,2107.6,0.001]
[1770680900099,2.12874119,2108.0,2107.4,0.001]
[1770680900299,0.94278294,2107.9,2107.4,0.001]
[1770680902828,1.18607078,2107.8,2107.4,0.001]
[1770680903323,4.74399951,2108.0,2107.4,0.001]
[1770680903813,1.18795825,2108.1,2107.4,0.001]
[1770680907022,2.1703158,2108.1,2107.4,0.001]
[1770680907427,0.98235755,2108.0,2107.4,0.001]
[1770680909222,1.18601451,2107.9,2107.4,0.001]
[1770680910929,2.16837206,2107.9,2107.4,0.001]
[1770680912745,0.98235755,2107.8,2107.6,0.001]
[1770680913107,0.002,2107.8,2107.4,0.001]
[1770680913540,0.98435755,2107.8,2107.1,0.001]
[1770680914050,2.1684846,2107.7,2107.1,0.001]
[1770680916216,0.98235755,2107.5,2106.6,2.14849474]
[1770680916541,0.98235755,2107.5,2106.6,0.96179201]
[1770680917439,0.98235755,2107.5,2106.6,2.14853717]
[1770680918742,1.1862959,2107.4,2106.6,0.96179201]
[1770680919411,1.1862959,2107.4,2106.4,0.142349]
[1770680919412,2.16865345,2107.4,2106.4,0.142349]
[1770680919617,1.03679542,2107.3,2106.4,1.10414101]
[1770680920257,1.03679542,2107.3,2106.4,0.142349]
[1770680920747,1.1864085,2107.2,2106.4,0.142349]
[1770680921321,1.03679542,2107.1,2106.4,0.142349]
[1770680921731,13.05233086,2107.0,2105.7,1.18722423]
[1770680921944,0.98235755,2106.8,2105.9,0.96179201]
[1770680922264,0.98235755,2106.8,2105.2,4.75006411]
[1770680922265,1.03679542,2106.9,2106.0,0.96179201]
[1770680922417,0.98235755,2106.9,2106.2,1.18696751]
[1770680922618,1.18657743,2106.9,2106.1,0.96179201]
[1770680923037,1.18657743,2106.9,2106.1,2.1488199]
[1770680923237,1.18657743,2106.9,2106.1,0.96179201]
[1770680923744,2.16893498,2106.9,2106.1,0.96179201]
[1770680923916,2.16893498,2106.9,2105.9,2.14889438]
[1770680924441,2.16893498,2106.9,2105.9,0.96179201]
[1770680924442,0.98235755,2106.8,2105.9,0.96179201]
[1770680925015,1.18669008,2106.7,2105.9,0.96179201]
[1770680925527,1.18669008,2106.7,2105.9,2.1489326]
[1770680925727,1.18669008,2106.7,2105.9,0.96179201]
[1770680925921,1.18669008,2106.7,2106.3,0.001]
[1770680926136,2.16902826,2106.8,2106.3,0.001]
[1770680926335,1.18667071,2106.8,2106.3,0.001]
[1770680927322,5.72889257,2106.9,2106.3,0.001]
[1770680927651,1.03679542,2106.8,2106.3,0.001]
[1770680928148,1.03679542,2106.8,2105.8,0.96179201]
[1770680928345,0.98235755,2106.6,2105.6,0.96179201]
[1770680928551,1.03679542,2106.6,2105.6,0.96179201]
[1770680928851,1.03679542,2106.6,2105.6,2.14910026]
[1770680929050,1.03679542,2106.6,2105.6,0.96179201]
[1770680929221,1.03679542,2106.6,2105.0,2.14941386]
[1770680929222,2.22387994,2106.0,2105.0,2.14941386]
[1770680929639,0.05443787,2105.8,2105.0,0.96179201]
[1770680929839,1.18708452,2106.0,2105.2,1.18753098]
[1770680930049,1.18708452,2106.0,2105.2,2.14696364]
[1770680930235,1.24152239,2106.0,2105.2,2.14696364]
[1770680930433,1.24152239,2106.0,2105.2,2.14696022]
[1770680930635,1.1870605,2106.1,2105.3,0.95943266]
[1770680930839,4.50301331,2106.2,2105.3,0.95943266]
[1770680931046,3.316,2106.2,2105.3,0.95943266]
[1770680931350,4.50298557,2106.2,2105.5,0.95943266]
[1770680932329,3.316,2106.2,2105.5,0.95943266]
[1770680933352,3.316,2106.2,2105.6,2.14674269]
[1770680933929,3.316,2106.2,2105.6,1.18731003]
[1770680933930,4.50297423,2106.2,2105.6,1.18731003]
[1770680934462,3.316,2106.2,2105.6,1.18731003]
[1770680934949,4.50297416,2106.2,2105.6,1.18731003]
[1770680935329,3.316,2106.2,2105.6,1.18731003]
[1770680935830,3.316,2106.2,2105.5,4.74944869]
[1770680936324,3.316,2106.2,2105.5,5.70888135]